Cogmind - Beta 11.1 @@@ ROGUE MODE // 2022.06.04 @ 22:13:00 Player: Ruxi Result: Self-destructed Performance ------------- Evolutions (2) 1000 Regions Visited (7) 1400 Robots Destroyed (135) 675 Value Destroyed (2958) 2958 Prototype IDs (34) 680 Alien Tech Used (0) 0 Bonus (-51) -51 TOTAL SCORE: 6662 Bonus ------- High Alert Combat Kills 79 Follower Combat Kills 39 Aligned with FarCom 300 Friendly Fire -469 Cogmind --------- Core Integrity 352/550 Matter 1/300 Energy 310/310 System Corruption 7% Temperature Cool (0) Movement Walking (115) Location -8/Materials Parts ------- > --- POWER (1) -------- Reinforced Fission Core > --- PROPULSION (4) --- Carbon-fiber Leg Carbon-fiber Leg Advanced Myomer Leg Enhanced Biometal Leg > --- UTILITY (4) ------ Small Storage Unit Advanced Transmission Jammer EX Chip 2 > --- WEAPON (2) ------- 8R-AWN's Boregun Improved Light Cannon > --- INVENTORY (8) ---- Graviton Reactor Flying Fortress v7 Advanced Power Amplifier Experimental Energy Well (600) Peak State ------------ > --- POWER ------------ Graviton Reactor > --- PROPULSION ------- Carbon-fiber Leg Advanced Myomer Leg Advanced Myomer Leg Enhanced Biometal Leg > --- UTILITY ---------- Humpback Improved Signal Interpreter Advanced Transmission Jammer > --- WEAPON ----------- 8R-AWN's Boregun 8R-AWN's Boregun > --- INVENTORY -------- Improved Ion Engine Light Neutrino Core Reinforced Fission Core Flying Fortress v7 Advanced Power Amplifier Experimental Heat Sink Experimental Energy Well Large Matter Pod Structural Scanner Improved Sensor Array Modified TNC EX Chip 1 EX Chip 1 EX Chip 1 EX Chip 2 EX Chip 2 EX Chip 2 EX Chip 2 EX Chip 2 EX Chip 2 Authchip [Armor] Authchip [Weapon] Improved System Guard AWS/Thermal EMP Blaster Rocket Launcher Improved Grenade Launcher Datajack Axe [Rating: 83] Favorites ----------- Power Improved Ion Engine Engine Improved Ion Engine Power Core Light Nuclear Core Reactor Graviton Reactor Propulsion Light Treads Treads Light Treads Leg Advanced Myomer Leg Utility Large Storage Unit Device Improved Sensor Array Storage Large Storage Unit Processor Improved Signal Interpreter Hackware Hacking Suite Protection Medium Armor Plating Weapon Improved Assault Rifle Energy Gun EM Pulse Gun Energy Cannon Advanced Beam Cannon Ballistic Gun Improved Assault Rifle Ballistic Cannon Heavy Assault Cannon Launcher Rocket Launcher Slashing Weapon Axe Special Melee Weapon Datajack Build | -11 -10 -10 -9 -9 -9 -8 -8 ------- Run | Scr Mat Min Mat Min Exi Min Mat Slots Evolved 4 | . . . 2 . . . 2 Power . | . . . . . . . . Propulsion 2 | . . . . . . . 2 Utility 2 | . . . 2 . . . . Weapon . | . . . . . . . . Parts Attached 176 | . 15 8 89 7 19 16 22 Power 14 | . 2 2 4 1 3 1 1 Engine 8 | . . 2 4 1 1 . . Core 5 | . 2 . . . 2 . 1 Reactor 1 | . . . . . . 1 . Propulsion 20 | . 2 . 11 . 2 . 5 Treads 12 | . 2 . 10 . . . . Leg 8 | . . . 1 . 2 . 5 Wheel . | . . . . . . . . Hover . | . . . . . . . . Flight . | . . . . . . . . Utility 59 | . 3 3 24 4 5 8 12 Device 29 | . 1 2 10 2 3 5 6 Storage 7 | . 1 . . . 1 3 2 Processor 2 | . . . . . . . 2 Hackware 3 | . 1 . . . . . 2 Protection 18 | . . 1 14 2 1 . . Artifact . | . . . . . . . . Weapon 83 | . 8 3 50 2 9 7 4 Energy Gun 13 | . 3 1 7 . . 2 . Energy Cannon 13 | . . . 13 . . . . Ballistic Gun 33 | . 4 1 18 2 3 3 2 Ballistic Cannon 9 | . . 1 5 . 2 . 1 Launcher 6 | . 1 . . . 4 . 1 Special Weapon . | . . . . . . . . Impact Weapon . | . . . . . . . . Slashing Weapon 7 | . . . 5 . . 2 . Piercing Weapon . | . . . . . . . . Special Melee Weapon 2 | . . . 2 . . . . Unidentified Prototypes 10 | . . . 2 1 3 3 1 Corrupted Parts 2 | . . 2 . . . . . System Corruption 7 | . . 7 . . . . . Parts Lost 14 | . 1 . 2 . 3 3 5 Power . | . . . . . . . . Propulsion 2 | . . . . . 1 . 1 Utility 8 | . . . 1 . 2 2 3 Weapon 4 | . 1 . 1 . . 1 1 Highest Loss Streak 3 | . 1 . 1 . 2 3 3 To Critical Strikes 1 | . . . . . 1 . . Average Slot Usage (%) 95 | . 98 100 97 98 95 78 88 Engine 7 | . 3 10 11 11 7 . . Core 1 | . 10 3 . . 3 . . Reactor 1 | . . . . . . 10 8 Treads 16 | . 21 28 21 22 14 . . Leg 7 | . 6 . . . 7 22 34 Device 14 | . 2 13 13 21 20 10 15 Storage 12 | . 14 14 11 11 11 21 9 Hackware 1 | . 10 . . . . . 1 Protection 9 | . . . 19 11 11 . . Energy Gun 6 | . 15 14 6 . . 8 2 Energy Cannon 1 | . . . 5 . . . . Ballistic Gun 8 | . 11 1 5 19 11 2 12 Ballistic Cannon 2 | . . 12 1 1 2 . . Naked Turns . | . . . . . . . . Heaviest Build 245 | 11 31 35 49 47 226 245 228 Greatest Support 105 | 20 40 40 49 49 69 60 105 Greatest Overweight (x) 4 | . 1 1 1 . 3 4 2 Average Overweight (x) . | . . . . . . 3 . Largest Inventory Capacity 35 | . 15 15 15 15 35 35 35 Average Capacity 17 | . 14 15 15 15 15 35 21 Most Carried 35 | . 15 15 15 15 35 35 34 Average Carried 15 | . 9 14 13 14 13 33 19 Final Capacity 35 | 8 15 15 15 15 35 35 8 Final Carried 34 | 6 15 15 15 15 34 33 7 Class Distribution -------------------- 55% | Mutant 22% | Commander-Mutant 14% | Hauler-Mutant 7% | Scavenger-Mutant Dominant Class ---------------- Mutant | -10/Materials Mutant | -10/Mines Mutant | -9/Materials Commander-Mutant | -9/Mines Commander-Mutant | -9/Exiles Hauler-Mutant | -8/Mines Hauler-Mutant | -8/Materials Resources | -11 -10 -10 -9 -9 -9 -8 -8 ----------- Run | Scr Mat Min Mat Min Exi Min Mat Matter Collected 3990 | 200 260 102 1364 150 534 555 825 Remotely . | . . . . . . . . Salvage Created 5034 | . 725 131 1977 93 10 762 1336 Parts 316 | . 45 14 142 11 . 33 71 Haulers Intercepted 8 | . 2 . 6 . . . . Recyclers Shooed 7 | . . . 2 . . 2 3 Parts Field Recycled . | . . . . . . . . Retrieved Matter . | . . . . . . . . Parts Self-Destructed . | . . . . . . . . Prevented . | . . . . . . . . Kills | -11 -10 -10 -9 -9 -9 -8 -8 ------- Run | Scr Mat Min Mat Min Exi Min Mat Combat Hostiles Destroyed 77 | . 10 5 33 6 4 7 12 Melee 1 | . . . . . . 1 . Guns 52 | . 9 3 19 3 . 6 12 Cannons 16 | . . 2 11 3 . . . AOE 7 | . 1 . 2 . 4 . . Classes Destroyed 16 | . 8 . 4 . 1 1 2 Worker 17 | . 3 . 8 1 . . 5 Builder 9 | . 1 . 3 . . 4 1 Tunneler 1 | . . . . . . . 1 Hauler 8 | . 2 . 6 . . . . Recycler 10 | . 1 . 1 . . 4 4 Mechanic 2 | . . . 1 . . . 1 Operator 3 | . 1 . 1 . . . 1 Watcher 11 | . 3 . 5 . . . 3 Swarmer 17 | . 3 3 2 6 . 3 . Grunt 39 | . 7 2 19 . . 3 8 Brawler 2 | . . . 2 . . . . Duelist 1 | . . . . . . 1 . Protector 1 | . . . 1 . . . . Sentry 12 | . . . 9 . . . 3 Hunter 1 | . . . . . . . 1 Assembled 5 | . . . . . 5 . . Best Kill Streak 8 | . 8 3 6 3 4 4 5 Combat Bots Only 4 | . 3 3 4 3 4 3 3 Max Kills in Single Turn 4 | . 3 1 2 1 4 1 2 Gunslinging 1 | . . . . . . . 1 Exploded 4 | . 1 . 1 . 4 . . Melee 1 | . . . . . . 1 . Uniques/NPCs Destroyed 3 | . . . . . 2 1 . EX-HEX (-9/Exiles) 8R-AWN (-9/Exiles) NK-0LA (-8/Mines) Combat | -11 -10 -10 -9 -9 -9 -8 -8 -------- Run | Scr Mat Min Mat Min Exi Min Mat Damage Taken 4839 | . 338 182 1402 135 423 1452 907 Core 590 | . 36 10 172 6 19 149 198 Absorbed by Shields . | . . . . . . . . Redirected to Shielding 82 | . . 25 57 . . . . Regen/Repaired (Parts) 139 | . 94 . 45 . . . . Core Remaining (%) 64 | 100 . 81 . . . 13 . Volleys Fired 336 | . 47 8 139 11 27 23 81 Largest 2 | . 2 2 2 2 2 2 2 Hottest 136 | . 80 75 136 60 69 60 60 Shots Fired 637 | . 87 16 227 18 39 73 177 Gun 519 | . 86 12 153 14 14 63 177 Cannon 104 | . . 4 74 4 12 10 . Launcher 14 | . 1 . . . 13 . . Special . | . . . . . . . . Kinetic 359 | . 33 8 94 18 26 31 149 Thermal 104 | . 6 . 28 . . 42 28 Explosive 14 | . 1 . . . 13 . . Electromagnetic 160 | . 47 8 105 . . . . Robot Hit Streak 16 | . 9 6 16 3 3 12 8 Robot Miss Streak 9 | . 3 3 9 2 2 2 5 Penetration Max 1 | . . . 1 . . 1 1 Secondary Targets 4 | . 2 . 1 . . . 1 Max Gunslinging Chain 1 | . 1 . 1 . . . 1 Autonomous 71 | . . . . . . 42 29 Shots Hit Robots 376 | . 55 9 158 9 9 63 73 Core Hits 179 | . 31 6 72 6 10 20 34 Critical Kills 15 | . 1 . . . . 1 13 Critical Parts Destroyed 18 | . 1 . . . . 3 14 Critical Strikes 46 | . 4 . 3 1 1 9 28 Destroy 37 | . 2 . . . . 7 28 Blast 6 | . . . 2 1 1 2 . Corrupt 3 | . 2 . 1 . . . . Melee Attacks 28 | . . . 16 . . 12 . Impact . | . . . . . . . . Slashing 21 | . . . 9 . . 12 . Piercing . | . . . . . . . . Sneak Attacks 13 | . . . 8 . . 5 . Combat Hostiles . | . . . . . . . . Follow-up Attacks . | . . . . . . . . Damage Inflicted 10041 | . 1154 121 3923 264 915 1950 1714 Guns 5627 | . 764 65 1797 115 . 1243 1643 Cannons 2870 | . . 56 1932 149 479 254 . Explosions 1027 | . 390 . 130 . 436 . 71 Melee 517 | . . . 64 . . 453 . Ramming . | . . . . . . . . Kinetic 4915 | . 232 82 2193 264 479 605 1060 Thermal 2015 | . 151 . 389 . . 892 583 Explosive 779 | . 272 . . . 436 . 71 Electromagnetic 1815 | . 499 39 1277 . . . . Impact . | . . . . . . . . Slashing 517 | . . . 64 . . 453 . Piercing . | . . . . . . . . Highest Corruption 11 | . . 7 . . . 11 7 Average Corruption 10 | . . 4 . . . 10 7 Corruption Purged . | . . . . . . . . Corruption Blocked . | . . . . . . . . Effects 44 | . . . . . . 41 3 Message Errors 12 | . . . . . . 12 . Matter Fused 11 | . . . . . . 10 1 Heat Flow Errors 4 | . . . . . . 4 . Energy Discharges 8 | . . . . . . 8 . Data Loss (minor) 4 | . . . . . . 4 . Data Loss (major) 3 | . . . . . . 2 1 Misdirections 1 | . . . . . . 1 . Weapon Failures 1 | . . . . . . . 1 Overload Shots . | . . . . . . . . Overflow Damage 257 | . 35 . 114 1 28 79 . Projectiles 142 | . . . 114 1 20 7 . Explosions 43 | . 35 . . . 8 . . Melee 72 | . . . . . . 72 . Knockbacks 11 | . . 1 3 . 4 3 . Impact . | . . . . . . . . Kinetic 10 | . . 1 2 . 4 3 . Secondary 1 | . . . 1 . . . . Self-Inflicted Damage 201 | . 149 . 52 . . . . Shots 5 | . 3 . 2 . . . . Rammed . | . . . . . . . . Targets Rammed . | . . . . . . . . Kicked . | . . . . . . . . Crushed . | . . . . . . . . Highest Temperature 312 | . 84 42 312 80 100 250 32 Average Temperature 68 | . 22 17 81 41 32 96 13 Received Heat Transfer 903 | . 99 . 504 . . 39 261 Effects 2 | . . . 2 . . . . Interference 2 | . . . 2 . . . . Siege Activations . | . . . . . . . . Robots Corrupted 2 | . . . 2 . . . . Combat Hostiles 1 | . . . 1 . . . . Parts Fried 12 | . 1 . 11 . . . . Impact Corruptions 1 | . . . 1 . . . . Robots Melted . | . . . . . . . . Combat Hostiles . | . . . . . . . . Parts Melted 1 | . . . . . . 1 . Heat Transferred 2522 | . 175 . 731 . . 876 740 Parts Sabotaged . | . . . . . . . . Parts Stolen . | . . . . . . . . Parts Stripped . | . . . . . . . . Power Chain Reactions 5 | . 2 . 3 . . . . Missiles Intercepted . | . . . . . . . . Alert | -11 -10 -10 -9 -9 -9 -8 -8 ------- Run | Scr Mat Min Mat Min Exi Min Mat Peak Influence 680 | . 304 75 680 441 . 87 288 Initial 265 | . . 5 . 265 . . 27 Average 143 | . 67 29 213 238 . 46 100 Maximum Alert Level 2 | . 1 . 2 2 . . 1 Low Security (%) 74 | . 85 100 67 36 . 100 72 Level 1 15 | . 14 . 13 44 . . 27 Level 2 9 | . . . 19 18 . . . Level 3 . | . . . . . . . . Level 4 . | . . . . . . . . Level 5 . | . . . . . . . . High Security . | . . . . . . . . Max Security . | . . . . . . . . Squads Dispatched 13 | . 2 1 7 . . . 3 Investigation 9 | . 1 1 5 . . . 2 Extermination . | . . . . . . . . Reinforcement 3 | . 1 . 1 . . . 1 Assault 1 | . . . 1 . . . . Garrison . | . . . . . . . . Intercept . | . . . . . . . . Searches Triggered . | . . . . . . . . Construction Impeded . | . . . . . . . . Haulers Reinforced . | . . . . . . . . Active Scanning Responses . | . . . . . . . . Cargo Convoy Interrupts . | . . . . . . . . Stealth | -11 -10 -10 -9 -9 -9 -8 -8 --------- Run | Scr Mat Min Mat Min Exi Min Mat Distress Signals 5 | . 2 . 3 . . . . Communications Jammed 14 | . . . . . . . 14 Distress Signals 14 | . . . . . . . 14 Times Spotted 121 | . 19 7 58 6 7 7 17 Peak Tracking Total 8 | . 5 3 5 3 8 3 3 Tactical Retreats 6 | . . . 4 . 1 1 . Traps | -11 -10 -10 -9 -9 -9 -8 -8 ------- Run | Scr Mat Min Mat Min Exi Min Mat Traps Triggered 4 | . 1 1 2 . . . . Indirectly . | . . . . . . . . Trap Hack Attempts . | . . . . . . . . Triggered . | . . . . . . . . Disarmed . | . . . . . . . . Reprogrammed . | . . . . . . . . Reused . | . . . . . . . . Traps Extracted . | . . . . . . . . Installed . | . . . . . . . . Triggered . | . . . . . . . . Machines | -11 -10 -10 -9 -9 -9 -8 -8 ---------- Run | Scr Mat Min Mat Min Exi Min Mat Machines Disabled 17 | . 2 . 1 1 5 1 7 Max in Single Turn 2 | . 1 . 1 1 2 1 2 Machines Sabotaged . | . . . . . . . . Garrisons Compromised . | . . . . . . . . Overloaded Fab Kills . | . . . . . . . . Hacking | -11 -10 -10 -9 -9 -9 -8 -8 --------- Run | Scr Mat Min Mat Min Exi Min Mat Machines Accessed 41 | . 10 2 17 1 5 1 5 Terminals 23 | . 7 . 11 . . 1 4 Fabricators . | . . . . . . . . Repair Stations 3 | . 1 . 2 . . . . Recycling Units 5 | . 2 . 2 . . . 1 Scanalyzers 2 | . . . 2 . . . . Garrison Access . | . . . . . . . . Total Hacks 165 | . 34 2 60 1 50 1 17 Successful 119 | . 20 2 39 1 50 . 7 Failed 46 | . 14 . 21 . . 1 10 Catastrophic 5 | . . . 4 . . . 1 Database Lockouts . | . . . . . . . . Manual 79 | . 24 . 36 . 1 1 17 Terminals 72 | . 28 . 29 . . 1 14 Fabricators . | . . . . . . . . Repair Stations 8 | . 2 . 6 . . . . Recycling Units 14 | . 4 . 7 . . . 3 Scanalyzers 18 | . . . 18 . . . . Garrison Access . | . . . . . . . . Terminal Hacks 65 | . 8 2 2 1 50 . 2 Record 49 | . . . . . 49 . . Robot Analysis 2 | . 2 . . . . . . Open Door 3 | . . 2 . 1 . . . Branch Access Points 1 | . . . 1 . . . . Terminal Index 2 | . 1 . . . . . 1 Recycling Unit Index 1 | . . . . . . . 1 Unreport Threat 6 | . 5 . 1 . . . . EX-Prototype ID Bank 1 | . . . . . 1 . . Fabricator Hacks . | . . . . . . . . Repair Station Hacks 6 | . 2 . 4 . . . . Scan Component 3 | . 1 . 2 . . . . Repair 3 | . 1 . 2 . . . . Recycling Unit Hacks 5 | . 3 . 2 . . . . Report Inventory 4 | . 2 . 2 . . . . Retrieve Matter 1 | . 1 . . . . . . Scanalyzer 16 | . . . 16 . . . . Insert Component 10 | . . . 10 . . . . Analyze 6 | . . . 6 . . . . Garrison Access Hacks . | . . . . . . . . Unauthorized Hacks 27 | . 7 . 15 . . . 5 Terminals 20 | . 6 . 9 . . . 5 Track 1 | . . . 1 . . . . Assimilate 6 | . 2 . 3 . . . 1 Botnet 10 | . 3 . 4 . . . 3 Operators 3 | . 1 . 1 . . . 1 Fabricators . | . . . . . . . . Repair Stations . | . . . . . . . . Recycling Units 5 | . 1 . 4 . . . . Monitor 1 | . . . 1 . . . . Recyclers 2 | . 1 . 1 . . . . Mask 2 | . . . 2 . . . . Scanalyzers 2 | . . . 2 . . . . Extract 2 | . . . 2 . . . . Garrison Access . | . . . . . . . . Data Cores Recovered . | . . . . . . . . Used . | . . . . . . . . Hacking Detections 26 | . 8 . 14 . . 1 3 Full Trace Events 4 | . 1 . 1 . . . 2 Feedback Events . | . . . . . . . . Feedback Blocked . | . . . . . . . . Robot Schematics Acquired . | . . . . . . . . Robots Built . | . . . . . . . . Authchips . | . . . . . . . . Time . | . . . . . . . . Total Robot Build Rating . | . . . . . . . . Part Schematics Acquired 11 | . . . 11 . . . . Parts Built . | . . . . . . . . Authchips . | . . . . . . . . Time . | . . . . . . . . Total Part Build Rating . | . . . . . . . . Parts Repaired 3 | . 1 . 2 . . . . Time 117 | . 26 . 91 . . . . Parts Recycled . | . . . . . . . . Recycled Matter . | . . . . . . . . Retrieved Matter 72 | . 72 . . . . . . Retrieved Components . | . . . . . . . . Parts Scanalyzed 5 | . . . 5 . . . . Part Schematics Acquired 5 | . . . 5 . . . . Parts Damaged 1 | . . . 1 . . . . Bothacking | -11 -10 -10 -9 -9 -9 -8 -8 ------------ Run | Scr Mat Min Mat Min Exi Min Mat Used RIF Installer . | . . . . . . . . Robots Hacked 2 | . . . 2 . . . . Non-combat 2 | . . . 2 . . . . Combat . | . . . . . . . . Robot Hacks Applied 5 | . . . 5 . . . . parse_system 2 | . . . 2 . . . . no_distress 2 | . . . 2 . . . . find_station 1 | . . . 1 . . . . Relay Couplers Released . | . . . . . . . . Fabnet Peak Effective % . | . . . . . . . . Robots Rewired . | . . . . . . . . Allies Hacked . | . . . . . . . . Hacks Repelled . | . . . . . . . . Allies | -11 -10 -10 -9 -9 -9 -8 -8 -------- Run | Scr Mat Min Mat Min Exi Min Mat Total Allies 5 | . 1 1 . 3 . . . Largest Group 4 | . 1 2 2 4 4 4 . Highest-Rated Group 50 | . 10 41 41 50 50 48 . Highest-Rated Ally 31 | . 10 31 31 16 16 16 . Total Orders 32 | . . 4 6 8 13 1 . STAY 15 | . . 2 3 3 7 . . FOLLOW 10 | . . 2 3 2 3 . . GUARD 3 | . . . . 3 . . . AID 1 | . . . . . 1 . . RETURN 3 | . . . . . 2 1 . Ally Attacks 127 | . . 5 5 . 109 8 . Total Damage 1105 | . . 42 84 . 920 59 . Kills 7 | . . 2 1 . 4 . . Allies Corrupted . | . . . . . . . . Allies Melted . | . . . . . . . . Intel | -11 -10 -10 -9 -9 -9 -8 -8 ------- Run | Scr Mat Min Mat Min Exi Min Mat Robot Analysis Total 2 | . 2 . . . . . . Derelict Logs Recovered 3 | . . 1 . 2 . . . Drone Launches 11 | . . . . . 7 4 . Drone Recoveries 8 | . . . . . 6 2 . Exploration | -11 -10 -10 -9 -9 -9 -8 -8 ------------- Run | Scr Mat Min Mat Min Exi Min Mat Turns Passed 13895 | . 1110 1568 4655 1257 2551 1139 1615 Spaces Moved 7096 | 1 564 904 2269 730 1599 290 739 Core . | . . . . . . . . Treads 5408 | . 475 904 2269 730 1030 . . Legs 1688 | 1 89 . . . 569 290 739 Wheels . | . . . . . . . . Hover . | . . . . . . . . Flight . | . . . . . . . . Fastest Speed 115 | 120 120 160 160 160 120 330 115 Average Speed 168 | 120 164 160 168 160 148 332 163 Slowest Speed 400 | 120 190 240 240 160 330 400 255 Overloaded Moves . | . . . . . . . . Propulsion Burnouts . | . . . . . . . . Robots Hopped . | . . . . . . . . Cave-ins Triggered 1 | . . . . . . . 1 Exploration Rate (%) 74 | 2 95 100 98 88 92 84 40 Regions Visited 7 Branch Regions 4 Pre-discovered Areas 3 | . . 2 . . 1 . . Known Exits Taken 1 | . . . 1 . . . . Unknown Exits Taken 6 | 1 1 1 . 1 1 1 . Scrap Searched 3 | . . 1 . 2 . . . Spaces Dug 42 | . . . 8 . . 4 30 Terrain Destroyed 235 | . 15 . 38 2 48 24 108 Melee 12 | . . . 8 . . 4 . Projectile 113 | . . . 14 2 9 19 69 AOE 100 | . 15 . 16 . 39 . 30 Terrain Rammed . | . . . . . . . . Walls Destroyed . | . . . . . . . . Machines Disabled . | . . . . . . . . Actions | -11 -10 -10 -9 -9 -9 -8 -8 --------- Run | Scr Mat Min Mat Min Exi Min Mat Total 8455 | . 661 1016 2830 801 1744 410 993 Wait 522 | . 8 71 205 44 6 56 132 Move 7088 | . 563 903 2268 729 1598 289 738 Hop . | . . . . . . . . Pick Up 144 | . 18 11 48 4 49 6 8 Fast Attach 26 | . 7 2 5 2 1 1 8 Attach 44 | . 1 . 17 3 11 6 6 Detach 27 | . . . 12 . 8 3 4 Swap 106 | . 7 6 67 2 7 9 8 Drop 133 | . 10 15 53 6 37 5 7 Fire 336 | . 47 8 139 11 27 23 81 Melee 28 | . . . 16 . . 12 . Ram . | . . . . . . . . Kick . | . . . . . . . . Crush . | . . . . . . . . Escape Stasis 1 | . . . . . . . 1 Rewire . | . . . . . . . . Trap . | . . . . . . . . Miscellaneous . | . . . . . . . . Route ------- -11/Scrapyard -10/Materials (discovered 5 exits: *Mat x3 / *Min x2) -10/Mines (discovered 2 exits: *Mat x2) -9/Materials (discovered 5 exits: *Mat x3 / *Min x2) -9/Mines (discovered 2 exits: *Mat / *Exi) -9/Exiles (discovered 2 exits: *Min x2) -8/Mines -8/Materials History --------- Turn | Location | Event 1 | -11/Scrapyard | Discovered new exit (range 0) 1 | -11/Scrapyard | Entered Materials 73 | -10/Materials | Discovered new exit (range 5) 184 | -10/Materials | Discovered new exit (range 16) 329 | -10/Materials | Discovered new exit (range 16) 334 | -10/Materials | Build established: Mutant 556 | -10/Materials | Discovered new exit (range 4) 783 | -10/Materials | Discovered new exit (range 12) 968 | -10/Materials | Repaired Assault Rifle 1111 | -10/Materials | Entered Mines 1111 | -10/Mines | Accompanied by 1 ally 1133 | -10/Mines | Met a Derelict bent on vengeance 1195 | -10/Mines | Met a Derelict shopkeep closing up shop 1345 | -10/Mines | Learned location of Storage (-8) 1506 | -10/Mines | Met a Derelict who couldn't figure out how to use a Trap Extractor 1797 | -10/Mines | Learned Materials interactive machine intel 1829 | -10/Mines | Discovered new exit (range 9) 1836 | -10/Mines | Escorted by a lone wolf Derelict 2092 | -10/Mines | Discovered new exit (range 15) 2679 | -10/Mines | Entered Materials 2679 | -9/Materials | Accompanied by 2 allies 2679 | -9/Materials | Evolved 2 slots: Utility x2 2680 | -9/Materials | Loaded intel: 18 interactive machine locations 3443 | -9/Materials | Discovered new exit (range 8) 4031 | -9/Materials | Repaired Broken Hvy. Assault Cannon? 4133 | -9/Materials | Discovered new exit (range 7) 4598 | -9/Materials | Discovered new exit (range 16) 4628 | -9/Materials | Identified exit to Mines 6136 | -9/Materials | Discovered new exit (range 10) 6718 | -9/Materials | Repaired Hvy. Assault Cannon? 6789 | -9/Materials | Build established: Scavenger-Mutant 7079 | -9/Materials | First assault squad dispatched 7334 | -9/Materials | Entered Mines 7334 | -9/Mines | Accompanied by 1 ally 7435 | -9/Mines | Learned Materials trap positions 7643 | -9/Mines | Build established: Mutant 7715 | -9/Mines | Learned location of 1 exit from Lower Caves 7737 | -9/Mines | Found the Drone Emporium 7745 | -9/Mines | Found Prototype Device 7745 | -9/Mines | Identified Thief Drone Bay 7774 | -9/Mines | Received a Rocket Launcher from a helpful Derelict 7906 | -9/Mines | Discovered new exit (range 6) 7931 | -9/Mines | Assisted by bots powering up and referring to "LRC-V3" 8230 | -9/Mines | Build established: Commander-Mutant 8447 | -9/Mines | Deemed a non-threat by the Exiles lab entrance 8448 | -9/Mines | Discovered new exit (range 5) 8591 | -9/Mines | Entered Exiles 8591 | -9/Exiles | Accompanied by 4 allies 8612 | -9/Exiles | Discovered new exit (range 15) 8647 | -9/Exiles | Met 8R-AWN 8670 | -9/Exiles | Met EX-HEX 8932 | -9/Exiles | Met EX-DEC 8974 | -9/Exiles | Visited The Gauntlet 9157 | -9/Exiles | Learned location of Zion (-6) 9216 | -9/Exiles | Discovered new exit (range 14) 9677 | -9/Exiles | Met EX-BIN 9696 | -9/Exiles | Aligned with FarCom system 9698 | -9/Exiles | Given EX-Vault access code 9762 | -9/Exiles | Opened EX-Vault 9777 | -9/Exiles | Found Flying Fortress v7 9811 | -9/Exiles | Warned to stay clear of 0b10 Research branches 10243 | -9/Exiles | Attacked by the Exiles 10248 | -9/Exiles | Allies destroyed EX-HEX 10421 | -9/Exiles | Found 8R-AWN's Boregun 10422 | -9/Exiles | Found 8R-AWN's Boregun 10924 | -9/Exiles | Found AWS/Thermal 10930 | -9/Exiles | Found Modified TNC 11142 | -9/Exiles | Stole three prototypes: Flying Fortress v7, Modified TNC, AWS/Thermal 11142 | -9/Exiles | Entered Mines 11142 | -8/Mines | Accompanied by 4 allies 11163 | -8/Mines | NK-0LA came to Exiles' defense 11170 | -8/Mines | Core integrity fell below 50% 11230 | -8/Mines | Core integrity fell below 20% 11230 | -8/Mines | System corruption reached 10% 11254 | -8/Mines | Lost 3 parts (2u1w) 11290 | -8/Mines | Destroyed NK-0LA 11357 | -8/Mines | Build established: Hauler-Mutant 12258 | -8/Mines | Discovered new exit (range 9) 12281 | -8/Mines | Entered Materials 12281 | -8/Materials | Evolved 2 slots: Propulsion x2 12282 | -8/Materials | Loaded intel: 13 trap records 13367 | -8/Materials | Build established: Mutant 13826 | -8/Materials | Crushed by falling debris 13857 | -8/Materials | Lost 3 parts (1n1u1w) 13896 | -8/Materials | Self-destructed Last Messages --------------- 13844_ ALERT: Suspicious activity at Recycling Unit M002. Dispatching Investigation squad. 13855_ Connecting with Terminal... >>Trojan(Botnet) Trojan loaded successfully. Testing... Terminal linked with 2 systems. Awaiting botnet instructions. 13861_ System corrupted: 8R-AWN's Boregun jammed. 13863_ System corrupted: Matter fused (-10). 13863_ HV Slug penetrates Recycling Unit. 13867_ HV Slug penetrates Wall. 13869_ HV Slug penetrates Recycling Unit. 13871_ HV Slug penetrates Wall. 13873_ HV Slug penetrates Recycling Unit. 13876_ Recycling Unit collapses. 13876_ Recycling Unit disabled. 13881_ HV Slug penetrates Matter Filter. 13886_ Acquired Imp. Light Cannon. 13894_ System corrupted: Substantial component data lost. Map ----- +----------------------------------------------------+ | # #??????????????????????????????? | | # #??????????????????????????????? | | o + #??????????????????????????????? | | ########### #??????????????????????????????? | | ## #???#??????????????????????????????? | | "" #?? #??????????????????????????????? | | ####"T #? #### ????????????????????????? | | ???#"" # #???????????????????????? | | ???### + ???????????????????????????? | | ?????# # ????????????????????????????? | | ?????# |#######????????????????????????????? | | ?????# %"## # #####????????????????????????? | | ?????# !" # #????????????????????????? | | ?????######################??????????????????????? | | ???????# #???# ##= #??????????????????????? | | ???????# #?????#"# """"" #??????????????????????? | | ???????# #??????# """"" ###????????????????????? | | ???????# #??????#T """"" # ????????????????????? | | ???????# #??????#" """"" + ????????????????????? | | ???????# #??????## """" # ????????????????????? | | ???????##????????# """"" # #????????????????????? | | ?????????????????# "%%"" # #????????????????????? | | ?????????????????# # #????????????????????? | | ????????????????####+###### #????????????????????? | | ????????????????#] #### #????????????????????? | | ????????????????# + @u #????????????????????? | | ????????????????# " " ####+####?????????????????? | | ????????????????# "Y # T #?????????????????? | | ????????????????# """ # #?????????????????? | | ????????????????# # #?????????????????? | | ????????????????######## #?????????????????? | | ???????????????????????#########?????????????????? | | | | | | | | | | | | | | | | | | | | | | | | | | | | | | | | | | | | | +----------------------------------------------------+ Best States ------------- Heat Dissipation 35 Energy Generation 29 Energy Capacity 940 Matter Stores 450 Matter Capacity 450 Sight Range 16 Robot Scan Range 15 Terrain Scan Range 14 Terrain Scan Density 10 Jamming Range 16 Additional Mass Support 9 Armor Coverage 375 Resistance: TH 10 Propulsion Shielding 66 Evasion (%) 55 Recoil Reduction 2 Offensive Hacking 10 Defensive Hacking 7 Authchip Count 2 Item Schematics ----------------- Hvy. Assault Cannon | -9/Materials | Scanalyzed Imp. Propulsion Shielding | -9/Materials | Scanalyzed Imp. Sensor Array | -9/Materials | Scanalyzed Lrg. Matter Pod | -9/Materials | Extracted Hvy. Assault Rifle | -9/Materials | Extracted Med. Matter Pod | -9/Materials | Extracted Grenade Launcher | -9/Materials | Extracted Hcp. Matter Pod | -9/Materials | Extracted Machine Analyzer | -9/Materials | Scanalyzed Adv. Weight Redist. System | -9/Materials | Scanalyzed Seismic Detector | -9/Materials | Extracted Robot Schematics ------------------ None Fabricated ------------ Nothing Alien Tech Used ----------------- None Achievements -------------- Please Form A Line Challenges ------------ None Game ------ Seed ArchitectNavigationThrower Manual? 0 Play Time 04:03:01 Cumulative 104.8 hours Start 2022.05.30 @ 23:42:45 End 2022.06.04 @ 22:13:00 Sessions 3 Manual Loads 0 Difficulty Rogue Special Mode None Game No. 67 Rogue 65 Adventurer 0 Explorer 2 Win Type - Total 0 Types 0/0/0/0/0/0/0/0/0 Lore% 26 Gallery% 36 Achievement% 30 Wizard Run 0 Options --------- ASCII 0 Keyboard 0 Movement Numpad Keybinds 0 Fullscreen 1 Font 18/SmallcapsGlow Map View 76x50 Tactical HUD 1 Map Filters NONE Filters NONE Steam 1 RUN: 55a7156e-ed3a-43c8-af4e-9f256498ef20